[Event "Titled Tuesday Blitz August 02 Early 2022"]
[White "Vakhlamov, Igor L."]
[Black "Madaminov, Mukhiddin"]
[WhiteFideId "24126748"]
[BlackFideId "14210703"]
[WhiteElo "2401"]
[BlackElo "2011"]
[Result "1-0"]
[Round "11"]
[TimeControl "180+1"]
[Date "2022.08.02"]
[WhiteClock "0:00:35"]
[BlackClock "0:00:04"]

1. e4 {[%clk 0:03:00]}  e5 {[%clk 0:02:59]} 2. Nf3 {[%clk 0:03:00]}  Nc6 {[%clk 0:02:59]} 3. Nc3 {[%clk 0:03:01]}  Nf6 {[%clk 0:02:59]} 4. Bb5 {[%clk 0:03:01]}  Bb4 {[%clk 0:02:58]} 5. Nd5 {[%clk 0:03:01]}  Be7 {[%clk 0:02:38]} 6. Nxe7 {[%clk 0:03:01]}  Qxe7 {[%clk 0:02:37]} 7. O-O {[%clk 0:03:02]}  O-O {[%clk 0:02:37]} 8. Re1 {[%clk 0:03:01]}  d6 {[%clk 0:02:34]} 9. h3 {[%clk 0:03:01]}  a6 {[%clk 0:02:31]} 10. Bf1 {[%clk 0:03:02]}  h6 {[%clk 0:02:01]} 11. c3 {[%clk 0:03:01]}  Nh7 {[%clk 0:01:53]} 12. d4 {[%clk 0:03:01]}  Qf6 {[%clk 0:01:54]} 13. a4 {[%clk 0:02:53]}  Re8 {[%clk 0:01:50]} 14. d5 {[%clk 0:02:49]}  Ne7 {[%clk 0:01:49]} 15. b4 {[%clk 0:02:47]}  Ng6 {[%clk 0:01:46]} 16. g3 {[%clk 0:02:47]}  Ng5 {[%clk 0:01:18]} 17. Nxg5 {[%clk 0:02:47]}  hxg5 {[%clk 0:01:19]} 18. Qh5 {[%clk 0:02:33]}  Nf4 {[%clk 0:00:57]} 19. gxf4 {[%clk 0:02:32]}  gxf4 {[%clk 0:00:53]} 20. c4 {[%clk 0:02:04]}  g6 {[%clk 0:00:52]} 21. Qh6 {[%clk 0:01:49]}  Qg7 {[%clk 0:00:36]} 22. Qxg7+ {[%clk 0:01:48]}  Kxg7 {[%clk 0:00:37]} 23. c5 {[%clk 0:01:45]}  Rh8 {[%clk 0:00:36]} 24. Ra3 {[%clk 0:01:44]}  a5 {[%clk 0:00:30]} 25. cxd6 {[%clk 0:01:30]}  axb4 {[%clk 0:00:29]} 26. Rb3 {[%clk 0:01:31]}  cxd6 {[%clk 0:00:27]} 27. Rxb4 {[%clk 0:01:31]}  Bxh3 {[%clk 0:00:27]} 28. Bg2 {[%clk 0:01:05]}  g5 {[%clk 0:00:16]} 29. f3 {[%clk 0:01:01]}  g4 {[%clk 0:00:15]} 30. fxg4 {[%clk 0:00:58]}  Bxg4 {[%clk 0:00:14]} 31. Ba3 {[%clk 0:00:54]}  Rh6 {[%clk 0:00:12]} 32. Kf2 {[%clk 0:00:50]}  Rg6 {[%clk 0:00:07]} 33. Rg1 {[%clk 0:00:47]}  b5 {[%clk 0:00:05]} 34. Bf3 {[%clk 0:00:39]}  Bxf3 {[%clk 0:00:03]} 35. Rxg6+ {[%clk 0:00:40]}  Kxg6 {[%clk 0:00:02]} 36. Kxf3 {[%clk 0:00:40]}  bxa4 {[%clk 0:00:02]} 37. Rb6 {[%clk 0:00:39]}  Rh8 {[%clk 0:00:02]} 38. Bxd6 {[%clk 0:00:37]}  Rh3+ {[%clk 0:00:02]} 39. Kg2 {[%clk 0:00:37]}  Rg3+ {[%clk 0:00:01]} 40. Kf2 {[%clk 0:00:37]}  f6 {[%clk 0:00:01]} 41. Bxe5 {[%clk 0:00:37]}  Re3 {[%clk 0:00:01]} 42. Rxf6+ {[%clk 0:00:34]}  Kh5 {[%clk 0:00:01]} 43. Rxf4 {[%clk 0:00:33]}  Rd3 {[%clk 0:00:02]} 44. Ke2 {[%clk 0:00:33]}  Rb3 {[%clk 0:00:02]} 45. d6 {[%clk 0:00:32]}  Rb5 {[%clk 0:00:01]} 46. d7 {[%clk 0:00:32]}  Rxe5 {[%clk 0:00:01]} 47. d8=Q {[%clk 0:00:32]}  a3 {[%clk 0:00:02]} 48. Qh4+ {[%clk 0:00:32]}  Kg6 {[%clk 0:00:02]} 49. Rf6+ {[%clk 0:00:33]}  Kg7 {[%clk 0:00:03]} 50. Qh6+ {[%clk 0:00:34]}  Kg8 {[%clk 0:00:04]} 51. Rf8# {[%clk 0:00:35]} 1-0


[Site "https://www.chess.com"]

[Event "Titled Tuesday Blitz August 02 Early 2022"]
[White "Vasquez Schroeder, Rodrigo"]
[Black "Nguyen, Quoc Hy"]
[WhiteFideId "3400042"]
[BlackFideId "12410853"]
[WhiteElo "2567"]
[BlackElo "1938"]
[Result "1-0"]
[Round "11"]
[TimeControl "180+1"]
[Date "2022.08.02"]
[WhiteClock "0:01:49"]
[BlackClock "0:00:15"]

1. e4 {[%clk 0:02:56]}  c5 {[%clk 0:02:59]} 2. Nf3 {[%clk 0:02:57]}  Nc6 {[%clk 0:02:59]} 3. d4 {[%clk 0:02:56]}  cxd4 {[%clk 0:02:59]} 4. Nxd4 {[%clk 0:02:57]}  e5 {[%clk 0:02:59]} 5. Nb5 {[%clk 0:02:57]}  d6 {[%clk 0:03:00]} 6. c4 {[%clk 0:02:57]}  Be7 {[%clk 0:02:59]} 7. N5c3 {[%clk 0:02:56]}  Nf6 {[%clk 0:02:56]} 8. Na3 {[%clk 0:02:55]}  O-O {[%clk 0:02:55]} 9. Nc2 {[%clk 0:02:55]}  Be6 {[%clk 0:02:51]} 10. Be2 {[%clk 0:02:56]}  Rc8 {[%clk 0:02:50]} 11. O-O {[%clk 0:02:54]}  Nd7 {[%clk 0:02:50]} 12. Be3 {[%clk 0:02:52]}  f5 {[%clk 0:02:39]} 13. exf5 {[%clk 0:02:52]}  Bxf5 {[%clk 0:02:39]} 14. Bg4 {[%clk 0:02:49]}  Kh8 {[%clk 0:02:31]} 15. Bxf5 {[%clk 0:02:49]}  Rxf5 {[%clk 0:02:31]} 16. Qd3 {[%clk 0:02:49]}  Qf8 {[%clk 0:02:22]} 17. b3 {[%clk 0:02:49]}  Bg5 {[%clk 0:02:20]} 18. Ne4 {[%clk 0:02:47]}  Bxe3 {[%clk 0:02:13]} 19. Nxe3 {[%clk 0:02:47]}  Rf4 {[%clk 0:02:13]} 20. Qxd6 {[%clk 0:02:43]}  Rxe4 {[%clk 0:02:01]} 21. Qxd7 {[%clk 0:02:43]}  Nd4 {[%clk 0:02:01]} 22. Qxb7 {[%clk 0:02:35]}  Rc6 {[%clk 0:01:34]} 23. Rae1 {[%clk 0:02:29]}  h5 {[%clk 0:01:22]} 24. f3 {[%clk 0:02:27]}  Rh4 {[%clk 0:01:16]} 25. Nd5 {[%clk 0:02:24]}  Rg6 {[%clk 0:01:12]} 26. Kh1 {[%clk 0:02:14]}  Rxg2 {[%clk 0:00:50]} 27. Kxg2 {[%clk 0:02:08]}  Qf5 {[%clk 0:00:49]} 28. Rf2 {[%clk 0:01:54]}  Qh3+ {[%clk 0:00:20]} 29. Kh1 {[%clk 0:01:53]}  Nxf3 {[%clk 0:00:20]} 30. Qa8+ {[%clk 0:01:49]}  Kh7 {[%clk 0:00:20]} 31. Nf6+ {[%clk 0:01:50]}  gxf6 {[%clk 0:00:18]} 32. Qxf3 {[%clk 0:01:50]}  Qd7 {[%clk 0:00:15]} 33. Qf5+ {[%clk 0:01:49]} 1-0


[Site "https://www.chess.com"]

[Event "Titled Tuesday Blitz August 02 Early 2022"]
[White "Vovk, Orest"]
[Black "Atakhan, Abtin"]
[WhiteFideId "14113490"]
[BlackFideId "22502203"]
[WhiteElo "2203"]
[BlackElo "2087"]
[Result "1/2-1/2"]
[Round "11"]
[TimeControl "180+1"]
[Date "2022.08.02"]
[WhiteClock "0:00:16"]
[BlackClock "0:00:14"]

1. h3 {[%clk 0:01:41]}  e5 {[%clk 0:02:58]} 2. g4 {[%clk 0:01:40]}  d5 {[%clk 0:02:57]} 3. Bg2 {[%clk 0:01:36]}  c6 {[%clk 0:02:57]} 4. d4 {[%clk 0:01:36]}  e4 {[%clk 0:02:52]} 5. c4 {[%clk 0:01:36]}  Bb4+ {[%clk 0:02:50]} 6. Nc3 {[%clk 0:01:36]}  Ne7 {[%clk 0:02:45]} 7. Qb3 {[%clk 0:01:36]}  a5 {[%clk 0:02:41]} 8. a3 {[%clk 0:01:35]}  dxc4 {[%clk 0:02:37]} 9. Qc2 {[%clk 0:01:25]}  Bxc3+ {[%clk 0:02:30]} 10. bxc3 {[%clk 0:01:25]}  f5 {[%clk 0:02:03]} 11. gxf5 {[%clk 0:01:25]}  Bxf5 {[%clk 0:02:04]} 12. Bxe4 {[%clk 0:01:25]}  Bxe4 {[%clk 0:02:03]} 13. Qxe4 {[%clk 0:01:26]}  O-O {[%clk 0:02:04]} 14. Nf3 {[%clk 0:01:25]}  Nd5 {[%clk 0:02:01]} 15. Bd2 {[%clk 0:01:19]}  Nd7 {[%clk 0:01:55]} 16. Rg1 {[%clk 0:01:16]}  N7f6 {[%clk 0:01:54]} 17. Qe6+ {[%clk 0:01:15]}  Kh8 {[%clk 0:01:54]} 18. Ne5 {[%clk 0:01:08]}  Qc7 {[%clk 0:01:43]} 19. Qf5 {[%clk 0:00:44]}  Rae8 {[%clk 0:01:35]} 20. O-O-O {[%clk 0:00:37]}  Qb6 {[%clk 0:01:20]} 21. e4 {[%clk 0:00:31]}  Ne7 {[%clk 0:01:11]} 22. Qg5 {[%clk 0:00:30]}  g6 {[%clk 0:01:04]} 23. Qh4 {[%clk 0:00:20]}  Qb3 {[%clk 0:00:57]} 24. Rxg6 {[%clk 0:00:16]}  Qxa3+ {[%clk 0:00:57]} 25. Kc2 {[%clk 0:00:16]}  Qb3+ {[%clk 0:00:49]} 26. Kc1 {[%clk 0:00:16]}  Qa3+ {[%clk 0:00:19]} 27. Kc2 {[%clk 0:00:16]}  Qa4+ {[%clk 0:00:17]} 28. Kc1 {[%clk 0:00:15]}  Qa1+ {[%clk 0:00:17]} 29. Kc2 {[%clk 0:00:16]}  Qa2+ {[%clk 0:00:18]} 30. Kc1 {[%clk 0:00:16]}  Qa3+ {[%clk 0:00:14]} 1/2-1/2


[Site "https://www.chess.com"]